bitfinex/quotes_BTCUSD_20251025
["timestamp","ask_amount","ask_price","bid_price","bid_amount"]
[1761380025590,0.00105082,111630.0,111620.0,3.21929052]
[1761380026239,0.00105082,111630.0,111620.0,3.26758157]
[1761380034339,0.00105082,111630.0,111620.0,2.31728941]
[1761380034557,0.3061969,111630.0,111620.0,0.30117353]
[1761380034736,0.15805082,111630.0,111620.0,0.30117353]
[1761380035140,0.15805082,111630.0,111620.0,0.60631961]
[1761380036069,0.15905082,111630.0,111620.0,0.60631961]
[1761380038256,0.00205082,111630.0,111620.0,0.60631961]
[1761380038531,0.15905082,111630.0,111620.0,0.60631961]
[1761380039334,0.15805082,111630.0,111620.0,0.60631961]
[1761380039785,0.16005082,111630.0,111620.0,0.60631961]
[1761380040409,0.21737082,111630.0,111620.0,0.60631961]
[1761380040820,0.21737082,111630.0,111620.0,0.30117353]
[1761380041043,0.21737082,111630.0,111620.0,0.60631961]
[1761380041425,0.21737082,111630.0,111620.0,0.91146569]
[1761380044783,0.00305082,111630.0,111620.0,0.60631165]
[1761380044965,0.21737082,111630.0,111620.0,0.60631165]
[1761380045174,0.16005082,111630.0,111620.0,2.6546027]
[1761380046843,0.16013082,111630.0,111620.0,2.6546027]
[1761380047218,0.16013082,111630.0,111620.0,2.62242753]
[1761380048214,0.16013082,111630.0,111620.0,2.65463417]
[1761380048419,0.16013082,111630.0,111620.0,2.62242753]
[1761380050864,0.15813082,111630.0,111620.0,2.62242753]
[1761380051268,0.15913082,111630.0,111620.0,2.62242753]
[1761380061794,0.15913082,111630.0,111620.0,2.31728941]
[1761380061994,0.15913082,111630.0,111620.0,2.62242753]
[1761380080428,0.15913082,111630.0,111620.0,2.57413648]
[1761380081765,0.00205082,111630.0,111620.0,2.57413648]
[1761380101516,0.00205082,111630.0,111620.0,2.63862266]
[1761380102592,0.00105082,111630.0,111620.0,2.63862266]
[1761380102726,0.00105082,111630.0,111620.0,2.63962266]
[1761380103352,0.00105082,111630.0,111620.0,2.57513648]
[1761380105415,0.00105082,111630.0,111620.0,2.62350242]
[1761380106403,0.00105082,111630.0,111620.0,2.65039721]
[1761380106857,0.00105082,111630.0,111620.0,2.95545095]
[1761380109716,0.00105082,111630.0,111620.0,2.90708501]
[1761380110076,0.00105082,111630.0,111620.0,2.95545214]
[1761380114968,0.00105082,111630.0,111620.0,2.90708501]
[1761380135800,0.00083382,111630.0,111620.0,2.90708501]
[1761380141563,0.00083382,111630.0,111620.0,2.97157119]
[1761380143549,0.00083382,111630.0,111620.0,3.27666712]
[1761380151993,0.00083382,111630.0,111620.0,4.53195491]
[1761380152229,0.00083382,111630.0,111620.0,3.55218094]
[1761380152432,0.00083382,111630.0,111620.0,3.61665131]
[1761380153433,0.00083382,111630.0,111620.0,3.62065131]
[1761380153636,0.00083382,111630.0,111620.0,3.61965131]
[1761380154117,0.00083382,111630.0,111620.0,3.62065131]
[1761380160984,0.00083382,111630.0,111620.0,3.6306513]
[1761380161435,0.00083382,111630.0,111620.0,3.6468065]
[1761380161651,0.00083382,111630.0,111620.0,3.56618093]
[1761380166449,0.00083382,111630.0,111620.0,3.62350093]
[1761380166876,0.00083382,111630.0,111620.0,3.3181456]
[1761380179446,0.00083382,111630.0,111620.0,3.39877117]
[1761380186235,0.00083382,111630.0,111620.0,3.09095606]
[1761380186453,0.00083382,111630.0,111620.0,3.01033049]
[1761380187089,0.00083382,111630.0,111620.0,3.00933049]
[1761380187304,0.00083382,111630.0,111620.0,3.01033049]
[1761380188031,0.00083382,111630.0,111620.0,2.70136426]
[1761380188232,0.01874544,111630.0,111620.0,2.31833208]
[1761380188453,0.04526042,111630.0,111620.0,2.32033208]
[1761380188656,0.01874544,111630.0,111620.0,2.32033208]
[1761380189255,0.01874544,111630.0,111620.0,2.31833208]
[1761380189469,0.01974544,111630.0,111620.0,0.35054197]
[1761380189662,0.01974544,111630.0,111620.0,0.34954197]
[1761380189872,0.01974544,111630.0,111620.0,0.35054197]
[1761380190349,0.01974544,111630.0,111620.0,0.30220825]
[1761380190553,0.01974544,111630.0,111620.0,0.30120825]
[1761380190751,0.00183382,111630.0,111620.0,0.30120825]
[1761380191114,0.00183382,111630.0,111620.0,0.60617448]
[1761380192507,0.15883382,111630.0,111620.0,0.60617448]
[1761380200293,0.15883382,111630.0,111620.0,0.57396459]
[1761380201793,0.17674544,111630.0,111620.0,0.57396459]
[1761380202871,0.17674544,111630.0,111620.0,0.26899836]
[1761380203706,0.20364488,111630.0,111620.0,0.26899836]
[1761380203913,0.18573326,111630.0,111620.0,0.26899836]
[1761380204674,0.36489656,111630.0,111620.0,0.26899836]
[1761380205906,0.18573326,111630.0,111620.0,0.26899836]
[1761380215448,0.18573326,111630.0,111620.0,0.30120825]
[1761380217402,0.18573326,111630.0,111620.0,0.60617448]
[1761380224335,0.02873326,111630.0,111620.0,0.60617448]
[1761380224563,0.18573326,111630.0,111620.0,0.60617448]
[1761380226458,0.15883382,111630.0,111620.0,0.60617448]
[1761380226929,0.15869831,111630.0,111620.0,0.60617448]
[1761380228736,0.15865831,111630.0,111620.0,0.92748586]
[1761380229335,0.15865831,111630.0,111620.0,0.95438253]
[1761380235784,0.15865831,111630.0,111620.0,0.98661501]
[1761380235998,0.15865831,111630.0,111620.0,0.95971834]
[1761380235999,0.17656993,111630.0,111620.0,0.95971834]
[1761380236434,0.15865831,111630.0,111620.0,0.95971834]
[1761380238012,0.15865831,111630.0,111620.0,0.60630773]
[1761380238295,0.15865831,111630.0,111620.0,0.91138462]
[1761380239498,0.17656993,111630.0,111620.0,0.91138462]
[1761380241333,0.17656993,111630.0,111620.0,0.60630773]
[1761380244401,0.35573323,111630.0,111620.0,0.60630773]
[1761380244601,0.33782161,111630.0,111620.0,0.60630773]
[1761380247804,0.33782161,111630.0,111620.0,0.91138462]
[1761380248953,0.33782161,111630.0,111620.0,0.60630773]
[1761380250511,0.33782161,111630.0,111620.0,0.30123084]
[1761380250750,0.33782161,111630.0,111620.0,0.60630773]
[1761380259767,0.33782161,111630.0,111620.0,0.30123084]
[1761380259969,0.33782161,111630.0,111620.0,0.60630773]
[1761380261965,0.15865831,111630.0,111620.0,0.60630773]
[1761380262188,0.17656993,111630.0,111620.0,0.60630773]
[1761380263614,0.15865831,111630.0,111620.0,0.60630773]
[1761380266613,0.21597831,111630.0,111620.0,0.60630773]
[1761380267381,0.21597831,111630.0,111620.0,0.65464145]
[1761380275784,0.21597831,111630.0,111620.0,0.95971834]
[1761380282562,0.00169831,111630.0,111620.0,0.95971834]
[1761380282729,0.21601831,111630.0,111620.0,0.95971834]
[1761380285194,0.21601831,111630.0,111620.0,0.34956456]
[1761380285385,0.21601831,111630.0,111620.0,0.95971834]
[1761380290352,0.21601831,111630.0,111620.0,0.34956456]
[1761380290552,0.21601831,111630.0,111620.0,0.65464145]
[1761380290752,0.21601831,111630.0,111620.0,0.65470542]
[1761380297566,0.21601831,111630.0,111620.0,0.34956456]
[1761380297802,0.24291775,111630.0,111620.0,0.65470542]
[1761380298378,0.24291775,111630.0,111620.0,0.34956456]
[1761380298578,0.24291775,111630.0,111620.0,0.65470542]
[1761380299827,0.24291775,111630.0,111620.0,0.34956456]
[1761380300080,0.24291775,111630.0,111620.0,0.65470542]
[1761380303352,0.21601831,111630.0,111620.0,0.65470542]
[1761380308568,0.21601831,111630.0,111620.0,0.34956456]
[1761380309185,0.39518161,111630.0,111620.0,0.0805662]
[1761380309385,0.39518161,111630.0,111620.0,0.03223248]
[1761380309827,0.48500062,111630.0,111610.0,0.25976161]
[1761380310158,0.42138489,111630.0,111610.0,0.34958062]
[1761380310373,0.01791162,111620.0,111610.0,0.34958062]
[1761380311141,0.19709097,111620.0,111610.0,0.03223248]
[1761380311346,0.17919541,111610.0,111590.0,0.5686164]
[1761380311549,0.17919541,111610.0,111600.0,0.08981901]
[1761380311749,0.35410703,111610.0,111600.0,0.08981901]
[1761380311920,0.33619541,111610.0,111600.0,0.08981901]
[1761380312119,0.36310018,111610.0,111600.0,0.08981901]
[1761380312962,0.36410018,111610.0,111600.0,0.08981901]
[1761380316707,0.17921146,111600.0,111590.0,4.902e-05]
[1761380316942,0.25444308,111600.0,111590.0,0.08986803]
[1761380317154,0.23653146,111600.0,111590.0,0.08986803]
[1761380317361,0.26343727,111600.0,111590.0,0.08986803]
[1761380318012,0.26343727,111600.0,111590.0,0.09086803]
[1761380319804,0.26343727,111600.0,111590.0,0.27009555]
[1761380320275,0.26343727,111600.0,111590.0,0.57423641]
[1761380320500,0.02690581,111600.0,111590.0,0.57423641]
[1761380320711,0.24126581,111600.0,111590.0,0.57423641]
[1761380321554,0.02690581,111600.0,111590.0,0.57423641]
[1761380321796,0.24126581,111600.0,111590.0,0.57423641]
[1761380324287,0.42047727,111600.0,111590.0,0.57423641]
[1761380324531,0.42047727,111600.0,111590.0,0.39500889]
[1761380325000,0.20611727,111600.0,111590.0,0.57423641]
[1761380325186,0.42047727,111600.0,111590.0,0.57423641]
[1761380325394,0.42047727,111600.0,111590.0,0.39500889]
[1761380325630,0.42047727,111600.0,111590.0,0.57423641]
[1761380327028,0.20611727,111600.0,111590.0,0.57423641]
[1761380327227,0.42047727,111600.0,111590.0,0.57423641]
[1761380327455,0.42047727,111600.0,111590.0,0.39500889]
[1761380327708,0.42047727,111600.0,111590.0,0.57423641]
[1761380328600,0.20611727,111600.0,111590.0,0.57423641]
[1761380329236,0.42047727,111600.0,111590.0,0.57423641]
[1761380329449,0.42047727,111600.0,111590.0,0.39500889]
[1761380329793,0.42047727,111600.0,111590.0,0.57423641]
[1761380330258,0.42047727,111600.0,111590.0,0.39500889]
[1761380332006,0.42047727,111600.0,111590.0,0.57423641]
[1761380337021,0.42047727,111600.0,111590.0,0.39500889]
[1761380337165,0.42047727,111600.0,111590.0,0.57423641]
[1761380339423,0.24126581,111600.0,111590.0,0.57423641]
[1761380339666,0.42047727,111600.0,111590.0,0.57423641]
[1761380342825,0.08426581,111600.0,111590.0,0.57423641]
[1761380343081,0.05736,111600.0,111590.0,2.96257013]
[1761380343293,0.02726272,111620.0,111610.0,0.17919541]
[1761380343503,0.02726272,111620.0,111610.0,0.59207482]
[1761380343504,0.18430272,111620.0,111610.0,0.59207482]
[1761380343715,0.15740142,111620.0,111610.0,0.57415528]
[1761380344353,0.18430154,111620.0,111610.0,0.57415528]
[1761380345185,0.18830154,111620.0,111610.0,0.57415528]
[1761380346211,0.18830154,111620.0,111610.0,2.57415528]
[1761380346426,0.16140142,111620.0,111610.0,2.57415528]
[1761380347058,0.15740142,111620.0,111610.0,2.57415528]
[1761380348481,0.15736142,111620.0,111610.0,2.57415528]
[1761380350837,0.15736142,111620.0,111610.0,2.87927962]
[1761380351054,0.15736142,111620.0,111610.0,2.57414702]
[1761380358357,0.15736142,111620.0,111610.0,2.87927962]
[1761380364453,0.15736142,111620.0,111610.0,2.57414702]
[1761380369299,0.15736142,111620.0,111610.0,2.62248703]
[1761380373482,0.15736142,111620.0,111610.0,2.31735443]
[1761380373757,0.15736142,111620.0,111610.0,2.62248703]
[1761380382063,0.15736142,111620.0,111610.0,2.31735443]
[1761380382244,0.15736142,111620.0,111610.0,2.62248703]
[1761380387936,0.15736142,111620.0,111610.0,2.92761963]
[1761380388138,0.00036142,111620.0,111610.0,3.21927962]
[1761380388355,0.15736142,111620.0,111610.0,3.21927962]
[1761380392280,0.00036142,111620.0,111610.0,3.21927962]
[1761380393020,0.00036142,111620.0,111610.0,2.91414702]
[1761380393225,0.00036142,111620.0,111610.0,2.96250517]
[1761380396246,0.00036142,111620.0,111610.0,3.26763777]
[1761380407650,0.00036142,111620.0,111610.0,3.29453584]
[1761380410368,0.00036142,111620.0,111610.0,3.24617769]
[1761380410801,0.00036142,111620.0,111610.0,2.94104777]
[1761380417005,0.00036142,111620.0,111610.0,3.09800777]
[1761380417207,0.00036142,111620.0,111610.0,3.16247888]
[1761380423037,0.16521586,111640.0,111630.0,0.48429858]
[1761380423249,0.16521586,111640.0,111630.0,0.57411759]
[1761380423828,0.16521586,111640.0,111630.0,0.60101305]
[1761380424236,0.16521586,111640.0,111630.0,0.60106207]
[1761380425608,0.16921586,111640.0,111630.0,0.60106207]
[1761380428812,0.1698896,111640.0,111630.0,0.60106207]
[1761380431455,0.1698896,111640.0,111630.0,0.29592679]
[1761380431657,0.1698896,111640.0,111630.0,0.60106207]
[1761380438386,0.1698896,111640.0,111630.0,0.29592679]
[1761380438594,0.1698896,111640.0,111630.0,0.60106207]
[1761380442048,0.1698896,111640.0,111630.0,0.29592679]
[1761380442483,0.34903685,111640.0,111630.0,0.60106207]
[1761380444205,0.1698896,111640.0,111630.0,0.60106207]
[1761380444418,0.34903685,111640.0,111630.0,0.60106207]
[1761380445800,0.1698896,111640.0,111630.0,0.98939497]
[1761380448683,0.1658896,111640.0,111630.0,0.98939497]
[1761380449285,0.1658896,111640.0,111630.0,2.98939497]
[1761380451806,0.36294847,111640.0,111630.0,2.13820093]
[1761380452018,0.34503685,111640.0,111630.0,0.08986803]
[1761380455539,0.34503685,111640.0,111630.0,4.902e-05]
[1761380455837,0.3719362,111640.0,111630.0,4.902e-05]
[1761380457240,0.3739362,111640.0,111630.0,4.902e-05]
[1761380459663,0.3738912,111640.0,111630.0,4.902e-05]
[1761380462543,0.3738912,111640.0,111630.0,0.4843476]
[1761380464711,0.2169312,111640.0,111630.0,0.4843476]
[1761380464875,0.4312112,111640.0,111630.0,0.4843476]
[1761380466619,0.40431185,111640.0,111630.0,0.4843476]
[1761380467325,0.40431185,111640.0,111630.0,0.17921232]
[1761380467463,0.40431185,111640.0,111630.0,0.4843476]
[1761380468095,0.19003185,111640.0,111630.0,0.4843476]
[1761380468295,0.40431185,111640.0,111630.0,0.57416661]
[1761380469137,0.40431185,111640.0,111630.0,0.39500331]
[1761380469424,0.40431185,111640.0,111630.0,0.26903133]
[1761380470599,0.34699185,111640.0,111630.0,0.26903133]
[1761380470723,0.40431185,111640.0,111630.0,0.26903133]
[1761380471200,0.40431185,111640.0,111630.0,0.08986803]
[1761380472797,0.40431185,111640.0,111630.0,0.39498054]
[1761380473991,0.19003185,111640.0,111630.0,0.39498054]
[1761380474201,0.40431185,111640.0,111630.0,0.39498054]
[1761380478067,0.40431185,111640.0,111630.0,0.57414384]
[1761380480787,0.19003185,111640.0,111630.0,0.57414384]
[1761380480927,0.40431185,111640.0,111630.0,0.57414384]
[1761380481596,0.0108846,111640.0,111630.0,0.87925635]
[1761380481820,0.1678846,111640.0,111630.0,0.87925635]
[1761380482048,0.1678846,111640.0,111630.0,0.57414384]
[1761380482453,0.1678846,111640.0,111630.0,0.90615184]
[1761380482679,0.1678846,111640.0,111630.0,3.59959725]
[1761380482680,0.0108846,111640.0,111630.0,3.59959725]
[1761380482921,0.0108846,111640.0,111630.0,3.61573546]
[1761380483553,0.0562846,111640.0,111630.0,3.61573546]
[1761380483766,0.1304046,111640.0,111630.0,3.61573546]
[1761380483986,0.0088846,111640.0,111630.0,3.61573546]
[1761380484440,0.0088846,111640.0,111630.0,3.62073546]
[1761380485084,0.0088846,111640.0,111630.0,3.62173546]
[1761380485524,0.0088846,111640.0,111630.0,3.62073546]
[1761380485920,0.0088846,111640.0,111630.0,3.62173546]
[1761380493037,0.0088846,111640.0,111630.0,3.25215184]
[1761380493441,0.0088846,111640.0,111630.0,3.40185184]
[1761380493887,0.0088846,111640.0,111630.0,3.70696435]
[1761380494109,0.0088846,111640.0,111630.0,4.73295526]
[1761380494325,0.0088846,111640.0,111630.0,3.81761773]
[1761380494744,0.0088846,111640.0,111630.0,2.9022802]
[1761380494953,0.0088846,111640.0,111630.0,3.81761773]
[1761380495168,0.0088846,111640.0,111630.0,2.9022802]
[1761380495371,0.0088846,111640.0,111630.0,3.81761773]
[1761380495575,0.0088846,111640.0,111630.0,2.9022802]
[1761380495783,0.0088846,111640.0,111630.0,3.81761773]
[1761380495983,0.0088846,111640.0,111630.0,3.51250522]
[1761380496192,0.0088846,111640.0,111630.0,3.81761773]
[1761380506452,0.0002,111650.0,111640.0,2.57532951]
[1761380506676,0.0002,111650.0,111640.0,4.65282358]
[1761380506888,1e-08,111650.0,111640.0,4.72344916]
[1761380507091,1e-08,111650.0,111640.0,4.73344915]
[1761380507294,1e-08,111650.0,111640.0,4.74596315]
[1761380507692,1e-08,111650.0,111640.0,4.74796315]
[1761380508710,1e-08,111650.0,111640.0,4.75496315]
[1761380509705,0.0002,111690.0,111650.0,2.23531347]
[1761380509927,0.0002,111690.0,111680.0,4.48763089]
[1761380510140,0.0002,111690.0,111680.0,3.68147963]
[1761380510556,0.0002,111690.0,111680.0,4.00297678]
[1761380510732,0.0002,111690.0,111680.0,4.06704842]
[1761380511076,0.00069082,111690.0,111680.0,4.00297678]
[1761380511275,0.00069082,111690.0,111680.0,4.11323069]
[1761380511914,0.00069082,111690.0,111680.0,3.74404654]
[1761380512542,0.00069082,111690.0,111680.0,3.74504654]
[1761380512934,0.00237431,111690.0,111680.0,3.74504654]
[1761380513157,0.00237431,111690.0,111680.0,3.79304408]
[1761380518883,0.00237431,111690.0,111680.0,3.4417493]
[1761380519042,0.00237431,111690.0,111680.0,3.69886427]
[1761380526048,0.00237431,111690.0,111680.0,3.84856427]
[1761380527605,0.00237431,111690.0,111680.0,3.83217963]
[1761380528182,0.00237431,111690.0,111680.0,3.88017717]
[1761380532300,0.00237431,111690.0,111680.0,3.89656181]
[1761380532795,0.00237431,111690.0,111680.0,3.59049636]
[1761380534564,0.00237431,111690.0,111680.0,3.54249882]
[1761380535391,0.00237431,111690.0,111680.0,3.60657046]
[1761380538188,0.00237431,111690.0,111680.0,3.65275273]
[1761380538589,0.00237431,111690.0,111680.0,3.58868109]
[1761380539343,0.00237431,111690.0,111680.0,3.66930666]
[1761380541012,0.01638464,111700.0,111690.0,2.17906706]
[1761380541216,0.01638464,111700.0,111690.0,2.9591689]
[1761380542165,0.01638464,111700.0,111690.0,2.9601689]
[1761380543000,0.01938464,111700.0,111690.0,2.9601689]
[1761380543393,0.01938464,111700.0,111690.0,2.96016335]
[1761380544169,0.01938464,111700.0,111690.0,3.10986335]
[1761380544829,0.01938464,111700.0,111690.0,3.11892836]
[1761380546775,0.01972124,111700.0,111690.0,3.11892836]
[1761380549502,0.01972124,111700.0,111690.0,2.96922836]
[1761380550878,0.01672124,111700.0,111690.0,2.96822836]
[1761380551107,0.01772124,111700.0,111690.0,2.96922836]
[1761380554136,0.01772124,111700.0,111690.0,2.90499437]
[1761380558728,0.01772124,111700.0,111690.0,2.96919682]
[1761380560524,0.01772124,111700.0,111690.0,2.90499437]
[1761380564419,0.01772124,111700.0,111690.0,2.98561994]
[1761380567539,0.01772124,111700.0,111690.0,3.13531994]
[1761380569920,0.01772124,111700.0,111690.0,3.11859775]
[1761380570096,0.01772124,111700.0,111690.0,3.15378574]
[1761380572599,0.01772124,111700.0,111690.0,3.2180537]
[1761380572772,0.01772124,111700.0,111690.0,3.12069838]
[1761380574495,0.01772124,111700.0,111690.0,3.05643042]
[1761380574697,0.01772124,111700.0,111690.0,2.97098574]
[1761380588311,0.01772124,111700.0,111690.0,2.99786385]
[1761380594859,0.01772124,111700.0,111690.0,2.99794073]
[1761380597586,0.01772124,111700.0,111690.0,2.69326625]
[1761380597821,0.01772124,111700.0,111690.0,2.99794073]
[1761380598027,0.01772124,111700.0,111690.0,3.2468073]
[1761380600388,0.01772124,111700.0,111690.0,3.27368419]
[1761380601445,0.01772124,111700.0,111690.0,3.33793951]
[1761380602881,0.01772124,111700.0,111690.0,3.35468278]
[1761380603711,0.01772124,111700.0,111690.0,4.01235953]
[1761380603893,0.01772124,111700.0,111690.0,3.94810421]
[1761380605059,0.01772124,111700.0,111690.0,3.59724746]
[1761380605313,0.01772124,111700.0,111690.0,3.66151657]
[1761380605620,0.01772124,111700.0,111690.0,3.50439657]
[1761380606676,0.01772124,111700.0,111690.0,3.19972209]
[1761380606887,0.01772124,111700.0,111690.0,3.50439657]
[1761380609334,0.01772124,111700.0,111690.0,3.35469657]
[1761380611866,0.01772124,111700.0,111690.0,3.3379533]
[1761380612067,0.01772124,111700.0,111690.0,3.35469111]
[1761380621160,0.01772124,111700.0,111690.0,3.50439111]
[1761380625599,0.01772124,111700.0,111690.0,3.50439498]
[1761380627157,0.01772124,111700.0,111690.0,3.4876533]
[1761380627365,0.01772124,111700.0,111690.0,3.50439511]
[1761380632820,0.01772124,111700.0,111690.0,3.4876533]
[1761380643319,0.01772124,111700.0,111690.0,3.4866533]
[1761380654786,0.01772124,111700.0,111690.0,3.48657156]
[1761380673064,0.01772124,111700.0,111690.0,3.64361156]
[1761380680258,0.01772124,111700.0,111690.0,3.57934245]
[1761380680467,0.01772124,111700.0,111690.0,3.42964245]
[1761380682365,0.01772124,111700.0,111690.0,4.0107839]
[1761380682802,0.00697867,111700.0,111690.0,4.0107839]
[1761380685964,0.00697867,111700.0,111690.0,4.07893505]
[1761380688674,1e-08,111700.0,111690.0,4.07893505]
[1761380691702,0.0002,111710.0,111700.0,2.5552333]
[1761380691900,0.0002,111710.0,111700.0,3.3919751]
[1761380692317,0.0002,111710.0,111700.0,3.5416751]
[1761380692672,0.0002,111710.0,111700.0,3.56189038]
[1761380693079,0.0022,111710.0,111700.0,3.56189038]
[1761380693252,0.0022,111710.0,111700.0,3.56289038]
[1761380695658,0.0022,111710.0,111700.0,3.57289037]
[1761380696737,0.0002,111710.0,111700.0,3.57189037]
[1761380697098,0.0002,111710.0,111700.0,3.57689037]
[1761380697644,0.00053654,111710.0,111700.0,3.57689037]
[1761380699883,0.00053654,111710.0,111700.0,2.95762316]
[1761380700105,0.00053654,111710.0,111700.0,3.48651481]
[1761380700728,0.00053654,111710.0,111700.0,3.33681481]
[1761380700931,0.00053654,111710.0,111700.0,3.33181481]
[1761380701132,0.00053654,111710.0,111700.0,3.33381481]
[1761380702377,0.00053654,111710.0,111700.0,3.33481481]
[1761380706178,0.00053654,111710.0,111700.0,3.41519038]
[1761380710094,0.00053654,111710.0,111700.0,3.56489038]
[1761380716852,0.00053654,111710.0,111700.0,4.78241796]
[1761380721210,1e-08,111720.0,111710.0,2.519035]
[1761380721413,1e-08,111720.0,111710.0,3.90939866]
[1761380722107,1e-08,111720.0,111710.0,3.92961394]
[1761380722551,0.00100001,111720.0,111710.0,3.92961394]
[1761380722763,0.00100001,111720.0,111710.0,3.93061394]
[1761380722971,0.01047424,111730.0,111720.0,0.17901897]
[1761380723184,0.01047424,111730.0,111720.0,3.28123358]
[1761380723393,0.01047424,111730.0,111720.0,3.26333169]
[1761380723817,0.01047424,111730.0,111720.0,4.18720333]
[1761380724225,0.01047424,111730.0,111720.0,4.18718784]
[1761380724428,0.01047424,111730.0,111720.0,4.12286384]
[1761380724843,0.01247424,111730.0,111720.0,4.12286384]
[1761380725046,0.01047424,111730.0,111720.0,4.12286384]
[1761380725264,0.01047424,111730.0,111720.0,4.12386384]
[1761380725666,0.01047424,111730.0,111720.0,4.12286384]
[1761380726003,0.01047424,111730.0,111720.0,4.12386384]
[1761380727073,0.01047424,111730.0,111720.0,4.18816501]
[1761380727284,0.01047424,111730.0,111720.0,3.27476761]
[1761380727495,0.01114719,111730.0,111720.0,3.27476761]
[1761380727920,0.01114719,111730.0,111720.0,3.42446761]
[1761380728350,0.01114719,111730.0,111720.0,3.36016644]
[1761380729622,0.01114719,111730.0,111720.0,3.66463224]
[1761380730289,0.01114719,111730.0,111720.0,3.72891496]
[1761380730701,0.01114719,111730.0,111720.0,3.66463224]
[1761380730917,0.01114719,111730.0,111720.0,3.36016644]
[1761380731571,0.01114719,111730.0,111720.0,3.66463224]
[1761380733229,0.01114719,111730.0,111720.0,3.73270469]
[1761380736298,0.01114719,111730.0,111720.0,2.51484149]
[1761380736520,0.01114719,111730.0,111720.0,3.42823889]
[1761380737152,0.01114719,111730.0,111720.0,3.73270469]
[1761380737359,0.01114719,111730.0,111720.0,3.42823889]
[1761380738207,0.01114719,111730.0,111720.0,3.73270469]
[1761380738416,0.01114719,111730.0,111720.0,4.34163629]
[1761380738625,0.01114719,111730.0,111720.0,3.42823889]
[1761380739721,0.01114719,111730.0,111720.0,3.49247655]
[1761380740759,0.01114719,111730.0,111720.0,3.4244041]
[1761380740980,0.01114719,111730.0,111720.0,3.4316641]
[1761380742548,0.01114719,111730.0,111720.0,3.2747041]
[1761380742780,0.01114719,111730.0,111720.0,2.5182667]
[1761380742983,0.01114719,111730.0,111720.0,3.1271983]
[1761380751253,0.01114719,111730.0,111720.0,3.42118986]
[1761380757083,0.01114719,111730.0,111720.0,2.95976406]
[1761380757289,0.20806176,111730.0,111720.0,2.10757583]
[1761380757486,0.19015014,111730.0,111720.0,0.13972185]
[1761380757698,0.52149153,111730.0,111720.0,0.04990284]
[1761380757897,0.21702573,111730.0,111720.0,0.01775682]
[1761380758103,0.21702573,111730.0,111720.0,0.001]
[1761380758304,0.17901897,111720.0,111710.0,0.51564506]
[1761380758551,0.39325897,111720.0,111710.0,0.60546407]
[1761380758939,0.39325897,111720.0,111710.0,0.42643083]
[1761380759372,0.39325897,111720.0,111710.0,0.60546583]
[1761380759774,0.39625897,111720.0,111710.0,0.60546583]
[1761380760897,0.21724,111720.0,111710.0,0.60546583]
[1761380761327,0.15996,111720.0,111710.0,0.60546583]
[1761380761532,0.21724,111720.0,111710.0,0.60546583]
[1761380761706,0.21724,111720.0,111710.0,0.60646583]
[1761380762247,0.21724,111720.0,111710.0,0.57431981]
[1761380762667,0.15996,111720.0,111710.0,0.57431981]
[1761380762882,0.21724,111720.0,111710.0,0.57431981]
[1761380763244,0.003,111720.0,111710.0,0.57431981]
[1761380763597,0.37784564,111720.0,111710.0,0.57431981]
[1761380763826,0.16394215,111720.0,111710.0,0.57431981]
[1761380764133,0.37818215,111720.0,111710.0,0.57431981]
[1761380764582,0.16394215,111720.0,111710.0,0.57431981]
[1761380764700,0.37818215,111720.0,111710.0,0.57431981]
[1761380764895,0.16394215,111720.0,111710.0,0.57431981]
[1761380765095,0.37818215,111720.0,111710.0,0.57431981]
[1761380771315,0.21457651,111720.0,111710.0,0.57431981]
[1761380776123,0.39359548,111720.0,111710.0,0.26985401]
[1761380776350,0.39359548,111720.0,111710.0,0.39528481]
[1761380776577,0.75636855,111720.0,111710.0,0.001]
[1761380777020,1.09701663,111720.0,111710.0,0.001]
[1761380777240,0.79255083,111720.0,111710.0,0.001]
[1761380777471,0.17905102,111700.0,111690.0,0.30451482]
[1761380777696,0.35404264,111700.0,111690.0,0.39433383]
[1761380777909,0.33613102,111700.0,111690.0,0.39433383]
[1761380778381,0.33613102,111700.0,111690.0,0.08986803]
[1761380779009,0.33713102,111700.0,111690.0,0.08986803]
[1761380779216,0.33613102,111700.0,111690.0,0.08986803]
[1761380779476,0.33713102,111700.0,111690.0,0.09086803]
[1761380781123,0.33713102,111700.0,111690.0,0.00104902]
[1761380788929,0.33713102,111700.0,111690.0,0.3058682]
[1761380791343,0.39441102,111700.0,111690.0,0.3058682]
[1761380791965,0.39441102,111700.0,111690.0,0.48493526]
[1761380793437,0.18005102,111700.0,111690.0,0.48493526]
[1761380793637,0.39441102,111700.0,111690.0,0.48493526]
[1761380794437,0.18005102,111700.0,111690.0,0.48493526]
[1761380794668,0.39441102,111700.0,111690.0,0.48493526]
[1761380795821,0.18005102,111700.0,111690.0,0.48493526]
[1761380795991,0.39441102,111700.0,111690.0,0.48493526]
[1761380799984,0.39441102,111700.0,111690.0,0.3058682]
[1761380800527,0.18005102,111700.0,111690.0,0.3058682]
[1761380800740,0.39437102,111700.0,111690.0,0.3058682]
[1761380806161,0.39437102,111700.0,111690.0,0.33801422]
[1761380811064,0.18005102,111700.0,111690.0,0.33801422]
[1761380811327,0.39437102,111700.0,111690.0,0.33801422]
[1761380814161,0.33709102,111700.0,111690.0,0.33801422]
[1761380814365,0.39437102,111700.0,111690.0,0.33801422]
[1761380816084,0.39437102,111700.0,111690.0,0.51708128]
[1761380816272,0.39437102,111700.0,111690.0,0.33801422]
[1761380820621,0.33709102,111700.0,111690.0,0.33801422]
[1761380820829,0.39437102,111700.0,111690.0,0.33801422]
[1761380821041,0.18005102,111700.0,111690.0,0.51708128]
[1761380821195,0.39437102,111700.0,111690.0,0.51708128]
[1761380821625,0.39437102,111700.0,111690.0,0.33801422]
[1761380822032,0.33709102,111700.0,111690.0,0.33801422]
[1761380822233,0.39437102,111700.0,111690.0,0.33801422]
[1761380822411,0.33709102,111700.0,111690.0,0.33801422]
[1761380822633,0.18005102,111700.0,111690.0,0.33801422]
[1761380822841,0.39437102,111700.0,111690.0,0.33801422]
[1761380823253,0.18005102,111700.0,111690.0,0.33801422]
[1761380823456,0.39437102,111700.0,111690.0,0.51708128]
[1761380824488,0.18005102,111700.0,111690.0,0.51708128]
[1761380825182,0.39437102,111700.0,111690.0,0.51708128]
[1761380825590,0.39437102,111700.0,111690.0,0.33801422]
[1761380825790,0.39437102,111700.0,111690.0,0.03319504]
[1761380825990,0.39437102,111700.0,111690.0,0.00104902]
[1761380826540,0.4305533,111700.0,111690.0,0.00104902]
[1761380828134,1.2550105,111700.0,111690.0,0.00104902]
[1761380828723,0.97708167,111700.0,111690.0,0.00104902]
[1761380829150,0.97708167,111700.0,111690.0,4.902e-05]
[1761380829561,1.28190085,111700.0,111690.0,4.902e-05]
[1761380829931,1.28090085,111700.0,111690.0,4.902e-05]
[1761380830358,1.28590085,111700.0,111690.0,4.902e-05]
[1761380834087,1.39018084,111700.0,111690.0,4.902e-05]
[1761380835892,1.23314084,111700.0,111690.0,4.902e-05]
[1761380836128,1.39026084,111700.0,111690.0,4.902e-05]
[1761380837387,0.76676167,111700.0,111690.0,4.902e-05]
[1761380837562,1.16032167,111700.0,111690.0,4.902e-05]
[1761380838742,1.46522585,111700.0,111690.0,4.902e-05]